fUST/lending_fUST_20250628
["ID","MTS","AMOUNT","RATE_DAILY","PERIOD"]
[368282930,1751089844366,-678.87,0.00020547,2]
[368282931,1751089844376,-1448.49,0.00020547,2]
[368282932,1751089844385,-767.65,0.00020547,2]
[368282933,1751089844394,-460.0,0.00020547,2]
[368282934,1751089844403,-1143.65,0.00020547,2]
[368282935,1751089844413,-3797.86,0.000206,2]
[368282936,1751089844422,-206.0,0.0002062,2]
[368282937,1751089844431,-160.0,0.00020624,3]
[368282938,1751089844441,-12564.78152626,0.00020624,3]
[368282939,1751089844450,-847.18566335,0.00020624,3]
[368282940,1751089844460,-8359.80157088,0.00020624,3]
[368282941,1751089844469,-213.78848551,0.00020624,3]
[368282942,1751089844479,-967.0,0.00020737,2]
[368282943,1751089844488,-255.4,0.00020747,3]
[368282944,1751089844498,-160.0,0.00020819,3]
[368282945,1751089844507,-460.0,0.00020821,2]
[368282946,1751089844516,-460.0,0.00020821,2]
[368282947,1751089844525,-591.39,0.00020821,2]
[368282948,1751089844535,-460.0,0.00020821,2]
[368282949,1751089844544,-590.69,0.00020821,2]
[368282950,1751089844554,-1194.61,0.00020821,2]
[368282951,1751089844565,-1995.1,0.00020821,2]
[368282952,1751089844579,-460.0,0.00020821,2]
[368282953,1751089844592,-508.36,0.00020821,2]
[368282954,1751089844605,-460.0,0.00020821,2]
[368282955,1751089844619,-2264.93,0.00020821,2]
[368282956,1751089844630,-558.65,0.00020821,2]
[368282957,1751089844641,-460.0,0.00020821,2]
[368282958,1751089844654,-785.25,0.00020821,2]
[368282959,1751089844666,-460.0,0.00020821,2]
[368282960,1751089844677,-460.0,0.00020821,2]
[368282961,1751089844690,-460.0,0.00020821,2]
[368282962,1751089844702,-1784.85,0.00020821,2]
[368282963,1751089844714,-460.0,0.00020821,2]
[368282964,1751089844727,-889.62,0.00020821,2]
[368282965,1751089844745,-1595.04,0.00020821,2]
[368282966,1751089844758,-1604.52,0.00020821,2]
[368282967,1751089844770,-460.0,0.00020821,2]
[368282968,1751089844781,-460.0,0.00020821,2]
[368282969,1751089844794,-460.0,0.00020821,2]
[368282970,1751089844806,-460.0,0.00020821,2]
[368282971,1751089844817,-460.0,0.00020821,2]
[368282972,1751089844830,-460.0,0.00020821,2]
[368282973,1751089844843,-2194.41,0.00020821,2]
[368282974,1751089844856,-2384.29,0.00020821,2]
[368282975,1751089844868,-460.0,0.00020821,2]
[368282976,1751089844879,-1707.37,0.00020821,2]
[368282977,1751089844890,-460.0,0.00020821,2]
[368282978,1751089844902,-670.86,0.00020821,2]
[368282979,1751089844913,-460.0,0.00020821,2]
[368282980,1751089844925,-460.0,0.00020821,2]
[368282981,1751089844937,-993.77,0.00020821,2]
[368282982,1751089844952,-460.0,0.00020821,2]
[368282983,1751089844965,-1411.49,0.00020821,2]
[368282984,1751089844977,-3142.74,0.00020821,2]
[368282985,1751089844989,-460.0,0.00020821,2]
[368282986,1751089845002,-1683.35,0.00020821,2]
[368282987,1751089845014,-818.86,0.00020821,2]
[368282988,1751089845028,-460.0,0.00020821,2]
[368282989,1751089845039,-520.32,0.00020821,2]
[368282990,1751089845050,-735.57,0.00020821,2]
[368282991,1751089845059,-3351.75,0.00020821,2]
[368282992,1751089845069,-624.82,0.00020821,2]
[368282993,1751089845081,-460.0,0.00020821,2]
[368282994,1751089845092,-460.0,0.00020821,2]
[368282995,1751089845107,-460.0,0.00020821,2]
[368282996,1751089845120,-460.0,0.00020821,2]
[368282997,1751089845131,-460.0,0.00020821,2]
[368282998,1751089845143,-460.0,0.00020821,2]
[368282999,1751089845154,-678.87,0.00020821,2]
[368283000,1751089845166,-1448.49,0.00020821,2]
[368283001,1751089845178,-767.65,0.00020821,2]
[368283002,1751089845189,-460.0,0.00020821,2]
[368283003,1751089845200,-1143.65,0.00020821,2]
[368283004,1751089845211,-967.0,0.00020832,2]
[368283005,1751089845222,-160.3588391,0.0002086,2]
[368283006,1751089845232,-5000.0,0.0002086,2]
[368283007,1751089845243,-246.59496078,0.0002086,2]
[368283008,1751089845253,-666.0,0.0002086,2]
[368283009,1751089845265,-500.0,0.0002086,2]
[368283010,1751089845276,-503.93739225,0.0002086,2]
[368283011,1751089845288,-500.0,0.0002086,2]
[368283012,1751089845299,-500.0,0.0002086,2]
[368283013,1751089845310,-2001.05393756,0.0002086,2]
[368283014,1751089845321,-25000.0,0.0002086,2]
[368283015,1751089845331,-500.0,0.0002086,2]
[368283016,1751089845343,-9311.42036975,0.0002086,2]
[368283017,1751089845353,-500.0,0.0002086,2]
[368283018,1751089845365,-500.0,0.0002086,2]
[368283019,1751089845375,-500.0,0.0002086,2]
[368283020,1751089845387,-500.0,0.0002086,2]
[368283021,1751089845398,-500.0,0.0002086,2]
[368283022,1751089845408,-500.0,0.0002086,2]
[368283023,1751089845420,-207.4,0.0002086,2]
[368283024,1751089845433,-500.0,0.0002086,2]
[368283025,1751089845445,-500.0,0.0002086,2]
[368283026,1751089845457,-500.0,0.0002086,2]
[368283027,1751089845469,-500.0,0.0002086,2]
[368283028,1751089845479,-500.0,0.0002086,2]
[368283029,1751089845491,-500.0,0.0002086,2]
[368283030,1751089845502,-500.0,0.0002086,2]
[368283031,1751089845513,-500.0,0.0002086,2]
[368283032,1751089845523,-151.0,0.0002086,2]
[368283033,1751089845534,-151.0,0.0002086,2]
[368283034,1751089845544,-2918.28290198,0.00020863,2]
[368283035,1751089845555,-8359.80157088,0.00020866,4]
[368283036,1751089845566,-206.0,0.000209,2]
[368283037,1751089845577,-690.642,0.00020915,2]
[368283038,1751089845588,-500.0,0.00020958,15]
[368283039,1751089845599,-716.195754,0.0002097,2]
[368283040,1751089845610,-255.4,0.00020988,3]
[368283041,1751089845621,-173.7173315,0.00021,4]
[368283042,1751089845633,-1500.0,0.00021016,2]
[368283043,1751089845645,-742.6949969,0.00021025,2]
[368283044,1751089845657,-626.58825586,0.00021064,2]
[368283045,1751089845668,-770.17471178,0.0002108,2]
[368283046,1751089845679,-460.0,0.00021095,2]
[368283047,1751089845692,-460.0,0.00021095,2]
[368283048,1751089845705,-591.39,0.00021095,2]
[368283049,1751089845718,-460.0,0.00021095,2]
[368283050,1751089845729,-590.69,0.00021095,2]
[368283051,1751089845751,-1194.61,0.00021095,2]
[368283052,1751089845763,-1995.1,0.00021095,2]
[368283053,1751089845775,-460.0,0.00021095,2]
[368283054,1751089845785,-508.36,0.00021095,2]
[368283055,1751089845796,-459.73013964,0.00021095,2]
[368283056,1751089845807,-2264.93,0.00021095,2]
[368283057,1751089845818,-558.65,0.00021095,2]
[368283058,1751089845830,-460.0,0.00021095,2]
[368283059,1751089845841,-785.25,0.00021095,2]
[368283060,1751089845851,-460.0,0.00021095,2]
[368283061,1751089845862,-460.0,0.00021095,2]
[368283062,1751089845873,-460.0,0.00021095,2]
[368283063,1751089845884,-1784.85,0.00021095,2]
[368283064,1751089845895,-460.0,0.00021095,2]
[368283065,1751089845906,-889.62,0.00021095,2]
[368283066,1751089845917,-1595.04,0.00021095,2]
[368283067,1751089845928,-1604.52,0.00021095,2]
[368283068,1751089845941,-597.17,0.00021095,2]
[368283069,1751089845952,-460.0,0.00021095,2]
[368283070,1751089845963,-460.0,0.00021095,2]
[368283071,1751089845975,-460.0,0.00021095,2]
[368283072,1751089845986,-460.0,0.00021095,2]
[368283073,1751089845997,-460.0,0.00021095,2]
[368283074,1751089846007,-2194.41,0.00021095,2]
[368283075,1751089846016,-2384.29,0.00021095,2]
[368283076,1751089846025,-460.0,0.00021095,2]
[368283077,1751089846034,-435.87720787,0.00021095,2]
[368283079,1751089846446,-1567.18,0.00019178,2]
[368283080,1751089846456,-1567.18,0.00019452,2]
[368283081,1751089846466,-1567.18,0.00019726,2]
[368283082,1751089846475,-1567.18,0.0002,2]
[368283083,1751089846484,-1567.18,0.00020273,2]
[368283084,1751089846495,-1567.18,0.00020547,2]
[368283085,1751089846505,-1567.18,0.00020821,2]
[368283086,1751089846514,-1271.49279213,0.00021095,2]
[368283087,1751089846524,-460.0,0.00021095,2]
[368283088,1751089846534,-670.86,0.00021095,2]
[368283089,1751089846543,-460.0,0.00021095,2]
[368283090,1751089846553,-460.0,0.00021095,2]
[368283091,1751089846563,-993.77,0.00021095,2]
[368283092,1751089846573,-460.0,0.00021095,2]
[368283093,1751089846582,-1411.49,0.00021095,2]
[368283094,1751089846592,-3142.74,0.00021095,2]
[368283095,1751089846601,-460.0,0.00021095,2]
[368283096,1751089846610,-1683.35,0.00021095,2]
[368283097,1751089846619,-818.86,0.00021095,2]
[368283098,1751089846628,-460.0,0.00021095,2]
[368283099,1751089846638,-520.32,0.00021095,2]
[368283100,1751089846648,-735.57,0.00021095,2]
[368283101,1751089846658,-3351.75,0.00021095,2]
[368283102,1751089846668,-624.82,0.00021095,2]
[368283103,1751089846677,-460.0,0.00021095,2]
[368283104,1751089846687,-460.0,0.00021095,2]
[368283105,1751089846696,-460.0,0.00021095,2]
[368283106,1751089846705,-460.0,0.00021095,2]
[368283107,1751089846715,-460.0,0.00021095,2]
[368283108,1751089846724,-460.0,0.00021095,2]
[368283109,1751089846734,-678.87,0.00021095,2]
[368283110,1751089846744,-1448.49,0.00021095,2]
[368283111,1751089846754,-767.65,0.00021095,2]
[368283112,1751089846764,-460.0,0.00021095,2]
[368283113,1751089846773,-1143.65,0.00021095,2]
[368283114,1751089846783,-1567.18,0.00021095,2]
[368283115,1751089846792,-2522.04525815,0.00021107,4]
[368283116,1751089846805,-3168.09438538,0.00021107,4]
[368283117,1751089846826,-2669.66192735,0.00021107,4]
[368283118,1751089846835,-967.0,0.00021134,2]
[368283119,1751089846845,-360.15863373,0.00021135,2]
[368283120,1751089846986,-438.51254239,0.00021135,2]
[368283121,1751089846996,-206.0,0.0002118,2]
[368283122,1751089847006,-828.22200964,0.0002119,2]
[368283123,1751089847015,-255.4,0.00021229,4]
[368283124,1751089847024,-581.8746126,0.00021233,2]
[368283125,1751089847033,-177.5104021,0.00021233,2]
[368283126,1751089847043,-177.5104021,0.00021233,2]
[368283127,1751089847052,-177.5104021,0.00021233,2]
[368283128,1751089847062,-858.86622399,0.00021245,2]
[368283129,1751089847071,-3071.97,0.00021286,2]
[368283130,1751089847082,-890.64427428,0.000213,2]
[368283131,1751089847091,-151.0,0.000213,3]
[368283132,1751089847100,-163.0,0.000213,5]
[368283133,1751089847110,-163.0,0.000213,5]
[368283134,1751089847119,-8359.80157088,0.00021348,5]
[368283135,1751089847129,-923.59811243,0.00021355,2]
[368283136,1751089847138,-460.0,0.00021369,2]
[368283137,1751089847147,-421.92715138,0.00021369,2]
[368283138,1751089847156,-591.39,0.00021369,2]
[368283139,1751089847166,-460.0,0.00021369,2]
[368283140,1751089847175,-500.0,0.00021369,16]
[368283141,1751089847185,-590.69,0.00021369,2]
[368283142,1751089847194,-1194.61,0.00021369,2]
[368283143,1751089847203,-1995.1,0.00021369,2]
[368283144,1751089847213,-460.0,0.00021369,2]
[368283145,1751089847223,-508.36,0.00021369,2]
[368283146,1751089847233,-2264.93,0.00021369,2]
[368283147,1751089847242,-558.65,0.00021369,2]
[368283148,1751089847252,-460.0,0.00021369,2]
[368283149,1751089847262,-785.25,0.00021369,2]
[368283150,1751089847271,-460.0,0.00021369,2]
[368283151,1751089847281,-460.0,0.00021369,2]
[368283152,1751089847291,-460.0,0.00021369,2]
[368283153,1751089847300,-1784.85,0.00021369,2]
[368283154,1751089847309,-460.0,0.00021369,2]
[368283155,1751089847319,-889.62,0.00021369,2]
[368283156,1751089847329,-1595.04,0.00021369,2]
[368283157,1751089847339,-1604.52,0.00021369,2]
[368283158,1751089847351,-460.0,0.00021369,2]
[368283159,1751089847361,-460.0,0.00021369,2]
[368283160,1751089847371,-460.0,0.00021369,2]
[368283161,1751089847380,-460.0,0.00021369,2]
[368283162,1751089847389,-460.0,0.00021369,2]
[368283163,1751089847399,-2194.41,0.00021369,2]
[368283164,1751089847408,-2384.29,0.00021369,2]
[368283165,1751089847418,-460.0,0.00021369,2]
[368283166,1751089847427,-1707.37,0.00021369,2]
[368283167,1751089847436,-151.0,0.00021369,2]
[368283168,1751089847446,-460.0,0.00021369,2]
[368283169,1751089847455,-670.86,0.00021369,2]
[368283170,1751089847464,-460.0,0.00021369,2]
[368283171,1751089847473,-460.0,0.00021369,2]
[368283172,1751089847482,-151.0,0.00021369,2]
[368283173,1751089847492,-993.77,0.00021369,2]
[368283174,1751089847501,-460.0,0.00021369,2]
[368283175,1751089847511,-1411.49,0.00021369,2]
[368283176,1751089847520,-3142.74,0.00021369,2]
[368283177,1751089847529,-460.0,0.00021369,2]
[368283178,1751089847538,-1683.35,0.00021369,2]
[368283179,1751089847547,-818.86,0.00021369,2]
[368283180,1751089847556,-460.0,0.00021369,2]
[368283181,1751089847565,-151.0,0.00021369,2]
[368283182,1751089847575,-520.32,0.00021369,2]
[368283183,1751089847584,-735.57,0.00021369,2]
[368283184,1751089847593,-3351.75,0.00021369,2]
[368283185,1751089847603,-624.82,0.00021369,2]
[368283186,1751089847612,-460.0,0.00021369,2]
[368283187,1751089847621,-460.0,0.00021369,2]
[368283188,1751089847630,-151.0,0.00021369,2]
[368283189,1751089847639,-151.0,0.00021369,2]
[368283190,1751089847648,-460.0,0.00021369,2]
[368283191,1751089847658,-460.0,0.00021369,2]
[368283192,1751089847667,-460.0,0.00021369,2]
[368283193,1751089847676,-151.18516,0.00021369,2]
[368283194,1751089847685,-678.87,0.00021369,2]
[368283195,1751089847694,-151.481043,0.00021369,2]
[368283196,1751089847703,-1448.49,0.00021369,2]
[368283197,1751089847712,-767.65,0.00021369,2]
[368283198,1751089847723,-460.0,0.00021369,2]
[368283199,1751089847732,-1143.65,0.00021369,2]
[368283200,1751089847745,-1567.18,0.00021369,2]
[368283201,1751089847754,-169.774288,0.00021369,2]
[368283202,1751089847763,-151.0,0.00021369,2]
[368283203,1751089847773,-619.70537815,0.00021387,2]
[368283204,1751089847783,-500.0,0.00021387,2]
[368283205,1751089847791,-500.0,0.00021387,2]
[368283206,1751089847800,-500.0,0.00021387,2]
[368283207,1751089847810,-500.0,0.00021387,2]
[368283208,1751089847819,-500.0,0.00021387,2]
[368283209,1751089847828,-500.0,0.00021387,2]
[368283210,1751089847838,-410.37003324,0.00021387,2]
[368283211,1751089847847,-500.0,0.00021387,2]
[368283212,1751089847857,-500.0,0.00021387,2]
[368283213,1751089847866,-290.00941988,0.00021387,2]
[368283214,1751089847875,-500.0,0.00021387,2]
[368283215,1751089847884,-500.0,0.00021387,2]
[368283216,1751089847894,-500.0,0.00021387,2]
[368283217,1751089847903,-500.0,0.00021387,2]
[368283218,1751089847912,-500.0,0.00021387,2]
[368283219,1751089847922,-500.0,0.00021387,2]
[368283220,1751089847931,-500.0,0.00021387,2]
[368283221,1751089847940,-500.0,0.00021387,2]
[368283222,1751089847951,-500.0,0.00021387,2]
[368283223,1751089847962,-500.0,0.00021387,2]
[368283224,1751089847971,-500.0,0.00021387,2]
[368283225,1751089847981,-500.0,0.00021387,2]
[368283226,1751089847991,-500.0,0.00021387,2]
[368283227,1751089848000,-500.0,0.00021387,2]
[368283228,1751089848010,-500.0,0.00021387,2]
[368283229,1751089848019,-500.0,0.00021387,2]
[368283230,1751089848028,-500.0,0.00021387,2]
[368283231,1751089848037,-500.0,0.00021387,2]
[368283232,1751089848047,-500.0,0.00021387,2]
[368283233,1751089848056,-500.0,0.00021387,2]
[368283234,1751089848065,-500.0,0.00021387,2]
[368283235,1751089848074,-500.0,0.00021387,2]
[368283236,1751089848084,-500.0,0.00021387,2]
[368283237,1751089848094,-500.0,0.00021387,2]
[368283238,1751089848103,-500.0,0.00021387,2]
[368283239,1751089848113,-500.0,0.00021387,2]
[368283240,1751089848122,-500.0,0.00021387,2]
[368283241,1751089848131,-500.0,0.00021387,2]
[368283242,1751089848141,-500.0,0.00021387,2]
[368283243,1751089848150,-605.63659588,0.00021387,2]
[368283244,1751089848159,-500.0,0.00021387,2]
[368283245,1751089848168,-500.0,0.00021387,2]
[368283246,1751089848177,-500.0,0.00021387,2]
[368283247,1751089848186,-500.0,0.00021387,2]
[368283248,1751089848195,-500.0,0.00021387,2]
[368283249,1751089848206,-500.0,0.00021387,2]
[368283250,1751089848215,-500.0,0.00021387,2]
[368283251,1751089848225,-500.0,0.00021387,2]
[368283252,1751089848235,-500.0,0.00021387,2]
[368283253,1751089848244,-500.0,0.00021387,2]
[368283254,1751089848254,-500.0,0.00021387,2]
[368283255,1751089848263,-500.0,0.00021387,2]
[368283256,1751089848273,-500.0,0.00021387,2]
[368283257,1751089848282,-357.67243531,0.00021387,2]
[368283258,1751089848292,-500.0,0.00021387,2]
[368283259,1751089848302,-500.0,0.00021387,2]
[368283260,1751089848311,-4731.76455675,0.00021389,2]
[368283261,1751089848324,-2268.23544325,0.00021389,2]
[368283262,1751089848334,-151.0,0.000214,4]
[368283263,1751089848343,-2122.29623675,0.00021408,2]
[368283264,1751089848355,-2877.70376325,0.00021408,2]
[368283265,1751089848365,-113.84623675,0.00021408,2]
[368283266,1751089848468,-460.0,0.00019178,2]
[368283267,1751089848478,-169.774288,0.00021369,2]
[368283268,1751089848488,-37.15376325,0.00021408,2]
[368283269,1751089848498,-151.0,0.00021408,2]
[368283270,1751089848507,-510.92419968,0.0002141,2]
[368283271,1751089848517,-71.14774907,0.00021416,2]
[368283272,1751089848529,-520.07725093,0.00021416,2]
[368283273,1751089848538,-206.0,0.0002146,2]
[368283274,1751089848548,-255.4,0.0002147,4]
[368283275,1751089848557,-153.0,0.00021481,2]
[368283276,1751089848566,-153.0,0.00021481,2]
[368283277,1751089848576,-153.0,0.00021481,2]
[368283278,1751089848585,-153.0,0.00021481,2]
[368283279,1751089848595,-153.0,0.00021481,2]
[368283280,1751089848604,-2918.28290198,0.00021482,2]
[368283281,1751089848613,-500.0,0.00021506,2]
[368283282,1751089848623,-482.784213,0.0002156,4]
[368283283,1751089848632,-19182.04525452,0.00021589,2]
[368283284,1751089891236,150.0,0.000222,69]
[368283313,1751090784507,360.061491,0.00013699,2]
[368283316,1751090825145,-346.23248409,0.00018521,2]
[368283317,1751090825168,-355.82353488,0.00018541,2]
[368283338,1751090951847,333.0,0.00018,2]
[368283400,1751091032506,-300.0,0.00018541,2]
[368283402,1751091032516,-355.0,0.00018541,2]
[368283404,1751091032525,-4154.79999999,0.00018542,2]
[368283406,1751091032538,-13085.91967255,0.00018542,2]
[368283409,1751091032549,-1889.82184368,0.00018542,2]
[368283410,1751091032565,-5769.45848378,0.00018542,2]
[368283412,1751091032576,-500.0,0.00018734,2]
[368283414,1751091032585,-1128.82491381,0.000189,2]
[368283416,1751091032595,-419.3003855,0.00019078,2]
[368283418,1751091032604,-153.23584734,0.00019168,3]
[368283421,1751091032623,-6.11415266,0.00019168,3]
[368283423,1751091032633,-212.48,0.00019168,3]
[368283425,1751091032643,-637.44,0.00019168,3]
[368283427,1751091032652,-500.0,0.00019177,2]
[368283429,1751091032662,-500.0,0.00019177,2]
[368283431,1751091032672,-500.0,0.00019177,2]
[368283433,1751091032681,-500.0,0.00019177,2]
[368283435,1751091032690,-500.0,0.00019177,2]
[368283437,1751091032699,-158.46810837,0.00019177,2]
[368283439,1751091032708,-500.0,0.00019177,2]
[368283440,1751091032718,-500.0,0.00019177,2]
[368283441,1751091032727,-289.51517732,0.00019177,2]
[368283442,1751091032737,-500.0,0.00019177,2]
[368283444,1751091032746,-500.0,0.00019177,2]
[368283446,1751091032755,-500.0,0.00019177,2]
[368283448,1751091032764,-500.0,0.00019177,2]
[368283450,1751091032773,-270.85527959,0.00019177,2]
[368283451,1751091032783,-500.0,0.00019177,2]
[368283452,1751091032792,-460.0,0.00019178,2]
[368283453,1751091032801,-523.34982942,0.00019178,2]
[368283454,1751091032811,-468.50187781,0.00019178,2]
[368283455,1751091032821,-472.00361962,0.00019178,2]
[368283456,1751091032830,-459.56627832,0.00019178,2]
[368283457,1751091032839,-460.0,0.00019178,2]
[368283458,1751091032848,-474.76866321,0.00019178,2]
[368283459,1751091032857,-465.51518134,0.00019178,2]
[368283460,1751091032866,-460.0,0.00019178,2]
[368283461,1751091032875,-460.0,0.00019178,2]
[368283462,1751091032884,-434.02768895,0.00019178,2]
[368283463,1751091032894,-171.74048495,0.00019178,2]
[368283464,1751091032903,-460.0,0.00019178,2]
[368283465,1751091032913,-442.60983561,0.00019178,2]
[368283466,1751091032922,-499.57974935,0.00019178,2]
[368283467,1751091032931,-460.0,0.00019178,2]
[368283468,1751091032941,-472.62057747,0.00019178,2]
[368283469,1751091032950,-460.0,0.00019178,2]
[368283470,1751091032959,-460.0,0.00019178,2]
[368283471,1751091032968,-475.50123312,0.00019178,2]
[368283472,1751091032978,-464.01835825,0.00019178,2]
[368283473,1751091032987,-460.0,0.00019178,2]
[368283474,1751091032998,-329.13846385,0.00019178,2]
[368283475,1751091033008,-245.10983262,0.00019178,2]
[368283476,1751091033017,-460.0,0.00019178,2]
[368283477,1751091033027,-446.07440955,0.00019178,2]
[368283478,1751091033036,-460.0,0.00019178,2]
[368283479,1751091033045,-460.0,0.00019178,2]
[368283480,1751091033055,-460.0,0.00019178,2]
[368283481,1751091033064,-460.0,0.00019178,2]
[368283482,1751091033073,-213.90096043,0.00019178,2]
[368283483,1751091033083,-460.0,0.00019178,2]
[368283484,1751091033092,-460.0,0.00019178,2]
[368283485,1751091033103,-587.58719918,0.00019178,2]
[368283486,1751091033113,-460.0,0.00019178,2]
[368283487,1751091033123,-429.34754869,0.00019178,2]
[368283488,1751091033132,-460.0,0.00019178,2]
[368283489,1751091033142,-460.0,0.00019178,2]
[368283490,1751091033151,-460.0,0.00019178,2]
[368283491,1751091033161,-442.57191412,0.00019178,2]
[368283492,1751091033172,-473.95348902,0.00019178,2]
[368283493,1751091033181,-498.6125136,0.00019178,2]
[368283494,1751091033191,-460.0,0.00019178,2]
[368283495,1751091033200,-460.0,0.00019178,2]
[368283496,1751091033210,-410.76504406,0.00019178,2]
[368283497,1751091033219,-460.0,0.00019178,2]
[368283498,1751091033228,-460.0,0.00019178,2]
[368283499,1751091033238,-464.73219916,0.00019178,2]
[368283500,1751091033248,-460.0,0.00019178,2]
[368283501,1751091033257,-460.0,0.00019178,2]
[368283502,1751091033267,-463.98769077,0.00019178,2]
[368283503,1751091033277,-460.0,0.00019178,2]
[368283504,1751091033287,-460.0,0.00019178,2]
[368283505,1751091033297,-460.0,0.00019178,2]
[368283506,1751091033307,-460.0,0.00019178,2]
[368283507,1751091033317,-474.94,0.00019178,2]
[368283508,1751091033327,-460.0,0.00019178,2]
[368283509,1751091033336,-460.0,0.00019178,2]
[368283510,1751091033345,-448.0,0.00019178,2]
[368283511,1751091033355,-361.34733992,0.00019178,2]
[368283512,1751091033365,-460.0,0.00019178,2]
[368283513,1751091033375,-464.17264325,0.00019178,2]
[368283514,1751091033385,-460.0,0.00019178,2]
[368283515,1751091033395,-460.0,0.00019178,2]
[368283516,1751091033404,-455.94,0.00019178,2]
[368283517,1751091033414,-460.0,0.00019178,2]
[368283518,1751091033424,-460.0,0.00019178,2]
[368283519,1751091033436,-460.0,0.00019178,2]
[368283520,1751091033446,-500.0,0.00019178,2]
[368283521,1751091033457,-793.94,0.00019178,2]
[368283522,1751091033466,-460.0,0.00019178,2]
[368283523,1751091033476,-470.29231926,0.00019178,2]
[368283524,1751091033488,-460.0,0.00019178,2]
[368283525,1751091033497,-460.0,0.00019178,2]
[368283526,1751091033508,-404.11422006,0.00019178,2]
[368283527,1751091033518,-460.0,0.00019178,2]
[368283528,1751091033527,-460.0,0.00019178,2]
[368283529,1751091033537,-460.0,0.00019178,2]
[368283530,1751091033546,-460.0,0.00019178,2]
[368283531,1751091033556,-460.0,0.00019178,2]
[368283532,1751091033566,-460.0,0.00019178,2]
[368283533,1751091033576,-460.0,0.00019178,2]
[368283534,1751091033586,-460.0,0.00019178,2]
[368283535,1751091033596,-404.11399578,0.00019178,2]
[368283536,1751091033605,-369.93628441,0.00019178,2]
[368283537,1751091033616,-460.0,0.00019178,2]
[368283538,1751091033626,-460.0,0.00019178,2]
[368283539,1751091033635,-460.0,0.00019178,2]
[368283540,1751091033645,-460.0,0.00019178,2]
[368283541,1751091033655,-460.0,0.00019178,2]
[368283542,1751091033665,-460.0,0.00019178,2]
[368283543,1751091033676,-475.16601052,0.00019178,2]
[368283544,1751091033685,-540.18,0.00019178,2]
[368283545,1751091033695,-515.47940428,0.00019178,2]
[368283546,1751091033706,-486.56719486,0.00019178,2]
[368283547,1751091033715,-460.0,0.00019178,2]
[368283548,1751091033725,-460.0,0.00019178,2]
[368283549,1751091033734,-481.45359119,0.00019178,2]
[368283550,1751091033744,-465.2776892,0.00019178,2]
[368283551,1751091033753,-156.68801382,0.00019178,2]
[368283552,1751091033763,-460.0,0.00019178,2]
[368283553,1751091033772,-460.0,0.00019178,2]
[368283554,1751091033781,-460.0,0.00019178,2]
[368283555,1751091033791,-174.79744718,0.00019178,2]
[368283556,1751091033800,-515.60976116,0.00019178,2]
[368283557,1751091033810,-500.0,0.00019178,2]
[368283558,1751091033819,-460.0,0.00019178,2]
[368283559,1751091033828,-161.94574817,0.00019178,2]
[368283560,1751091033838,-204.29,0.00019178,2]
[368283561,1751091033848,-460.0,0.00019178,2]
[368283562,1751091033857,-460.0,0.00019178,2]
[368283563,1751091033866,-460.0,0.00019178,2]
[368283564,1751091033876,-515.17189896,0.00019178,2]
[368283565,1751091033885,-460.0,0.00019178,2]